bitfinex-derivatives/quotes_SOLF0:USTF0_20260208
["timestamp","ask_amount","ask_price","bid_price","bid_amount"]
[1770521581292,49.74864822,87.354,87.33,3.35899155]
[1770521581892,10.69378566,87.393,87.33,3.35899155]
[1770521581893,3.35899155,87.4,87.34,3.35899155]
[1770521582096,8.3838992,87.399,87.35,53.35769157]
[1770521582296,8.3838992,87.399,87.268,20.642]
[1770521582297,3.35899155,87.42,87.37,3.35899155]
[1770521582495,8.36927769,87.419,87.37,3.35899155]
[1770521582795,8.36927769,87.418,87.36,53.35769157]
[1770521583000,8.36927769,87.417,87.36,53.35769157]
[1770521583200,8.36927769,87.416,87.36,53.35769157]
[1770521583502,3.35899155,87.42,87.36,53.35769157]
[1770521583703,8.3562204,87.419,87.36,53.35769157]
[1770521583904,58.10486862,87.418,87.36,53.35769157]
[1770521584205,49.74864822,87.418,87.36,53.35769157]
[1770521584405,49.74864822,87.399,87.34,49.99870002]
[1770521584605,49.74864822,87.399,87.351,49.99870002]
[1770521588007,49.74864822,87.399,87.36,53.58204618]
[1770521588404,49.74864822,87.399,87.36,50.22305463]
[1770521589003,49.74864822,87.399,87.351,50.22305463]
[1770521589706,49.74864822,87.399,87.339,10.3126]
[1770521589707,49.74864822,87.399,87.34,3.35899155]
[1770521589911,46.48931111,87.389,87.34,50.22305463]
[1770521590102,46.48931111,87.379,87.34,50.22305463]
[1770521593010,46.48931111,87.379,87.34,53.58204618]
[1770521593309,46.48931111,87.379,87.35,3.35899155]
[1770521594809,3.35899155,87.41,87.36,3.35899155]
[1770521595208,10.304,87.413,87.36,3.35899155]
[1770521596411,3.35899155,87.41,87.35,53.48550292]
[1770521596807,48.89746543,87.409,87.35,53.48550292]
[1770521599005,3.35899155,87.4,87.35,53.48550292]
[1770521599217,48.89746543,87.399,87.35,53.48550292]
[1770521599912,48.89746543,87.399,87.36,3.35899155]
[1770521600314,48.89746543,87.399,87.36,53.48550292]
[1770521603618,438.35466241,87.426,87.38,53.48550292]
[1770521603619,48.89746543,87.418,87.38,53.48550292]
[1770521603813,48.89746543,87.43,87.39,3.35899155]
[1770521604112,48.89746543,87.468,87.41,3.35899155]
[1770521604316,59.19496543,87.468,87.41,3.35899155]
[1770521604516,59.19496543,87.468,87.411,50.12651137]
[1770521604920,48.89746543,87.459,87.4,3.35899155]
[1770521605126,48.89746543,87.459,87.41,3.35899155]
[1770521605324,48.89746543,87.459,87.42,3.35899155]
[1770521607116,48.89746543,87.459,87.35,34.36]
[1770521607117,48.89746543,87.459,87.4,53.48550292]
[1770521607523,48.89746543,87.454,87.4,53.48550292]
[1770521607722,48.89746543,87.454,87.41,53.48550292]
[1770521608123,48.89746543,87.439,87.381,50.12651137]
[1770521610527,48.89746543,87.439,87.39,53.48550292]
[1770521610912,48.89746543,87.439,87.4,3.35899155]
[1770521611318,48.89746543,87.439,87.39,50.12651137]
[1770521611319,48.89746543,87.439,87.39,53.48550292]
[1770521612923,48.89746543,87.439,87.4,3.35899155]
[1770521614122,48.89746543,87.439,87.39,53.48550292]
[1770521614925,48.89746543,87.439,87.39,50.12651137]
[1770521615121,48.89746543,87.439,87.38,53.48550292]
[1770521616324,1.99073849,87.483,87.38,53.48550292]
[1770521616325,47.18545899,87.438,87.4,3.35899155]
[1770521617526,47.18545899,87.438,87.4,52.01816695]
[1770521619617,47.18545899,87.438,87.4,48.6591754]
[1770521620520,10.2995,87.451,87.411,48.6591754]
[1770521620521,47.18545899,87.451,87.411,48.6591754]
[1770521620727,47.18545899,87.451,87.42,3.35899155]
[1770521621120,47.18545899,87.451,87.411,48.6591754]
[1770521621322,47.18545899,87.451,87.42,3.35899155]
[1770521622425,47.18545899,87.451,87.411,48.6591754]
[1770521623122,47.18545899,87.451,87.42,3.35899155]
[1770521624420,47.18545899,87.474,87.43,3.35899155]
[1770521624624,47.18545899,87.472,87.43,3.35899155]
[1770521625821,3.35899155,87.49,87.41,52.01816695]
[1770521625822,47.18545899,87.469,87.41,52.01816695]
[1770521626022,47.18545899,87.467,87.41,3.35899155]
[1770521626225,3.35899155,87.47,87.41,3.35899155]
[1770521626226,47.18545899,87.465,87.41,3.35899155]
[1770521626729,47.18545899,87.463,87.41,52.01816695]
[1770521629230,47.18545899,87.459,87.41,52.01816695]
[1770521630027,47.18545899,87.455,87.41,3.35899155]
[1770521630225,47.18545899,87.449,87.39,3.35899155]
[1770521630431,47.18545899,87.447,87.39,3.35899155]
[1770521630626,47.18545899,87.445,87.4,3.35899155]
[1770521631427,10.2991,87.455,87.39,48.6591754]
[1770521631428,47.18545899,87.441,87.39,52.00912921]
[1770521631634,47.18545899,87.439,87.39,52.00912921]
[1770521632130,14.16352531,87.474,87.39,52.00912921]
[1770521632131,47.18545899,87.437,87.39,52.00912921]
[1770521632336,47.18545899,87.437,87.4,3.34995381]
[1770521634231,47.18545899,87.434,87.39,52.00912921]
[1770521634430,47.18545899,87.434,87.39,48.6591754]
[1770521635527,47.18545899,87.431,87.38,3.34995381]
[1770521636635,21.2028151,87.474,87.378,48.6591754]
[1770521636636,47.18545899,87.429,87.378,48.6591754]
[1770521636836,47.18545899,87.423,87.378,48.6591754]
[1770521637043,47.18545899,87.423,87.37,3.34995381]
[1770521638032,47.18545899,87.423,87.37,52.00912921]
[1770521638233,47.18545899,87.423,87.39,3.34995381]
[1770521639641,47.18545899,87.423,87.381,48.6591754]
[1770521640631,47.18545899,87.437,87.41,3.34995381]
[1770521642034,47.18545899,87.437,87.4,52.00912921]
[1770521642240,47.18545899,87.437,87.41,3.34995381]
[1770521642438,14.16352531,87.477,87.334,160.4285]
[1770521642439,47.18545899,87.459,87.42,3.34995381]
[1770521642640,8.59916945,87.458,87.42,3.34995381]
[1770521642840,8.59916945,87.457,87.42,3.34995381]
[1770521643143,47.18545899,87.459,87.42,3.34995381]
[1770521643436,47.18545899,87.458,87.42,3.34995381]
[1770521643940,47.18545899,87.458,87.43,3.34995381]
[1770521644530,47.18545899,87.458,87.421,48.6591754]
[1770521645443,10.2967,87.475,87.421,48.6591754]
[1770521645444,47.18545899,87.47,87.43,3.34995381]
[1770521645643,45.98400576,87.469,87.43,3.34995381]
[1770521646439,45.98400576,87.469,87.44,3.34995381]
[1770521646933,45.98400576,87.481,87.45,3.34995381]
[1770521647136,54.59019159,87.48,87.45,3.34995381]
[1770521647334,54.59019159,87.479,87.441,46.15281161]
[1770521647537,54.59019159,87.478,87.441,46.15281161]
[1770521647738,54.59019159,87.478,87.372,34.35]
[1770521647739,54.59019159,87.477,87.43,3.34995381]
[1770521648039,45.98400576,87.475,87.42,3.34995381]
[1770521648236,45.98400576,87.473,87.42,3.34995381]
[1770521648545,45.98400576,87.471,87.44,3.34995381]
[1770521649545,45.98400576,87.471,87.45,3.34995381]
[1770521649742,45.98400576,87.471,87.44,3.34995381]
[1770521650048,45.98400576,87.49,87.44,3.34995381]
[1770521650249,45.98400576,87.488,87.441,46.15281161]
[1770521650444,54.55622274,87.487,87.441,46.15281161]
[1770521650649,8.57221698,87.486,87.441,46.15281161]
[1770521650838,8.57221698,87.485,87.441,46.15281161]
[1770521651044,8.57221698,87.484,87.441,46.15281161]
[1770521651339,8.57221698,87.483,87.441,46.15281161]
[1770521651649,8.57221698,87.482,87.441,46.15281161]
[1770521651848,8.57221698,87.481,87.441,46.15281161]
[1770521652052,8.57221698,87.48,87.441,46.15281161]
[1770521652350,45.98400576,87.485,87.441,46.15281161]
[1770521652550,8.56691482,87.484,87.441,46.15281161]
[1770521652745,8.56691482,87.483,87.441,46.15281161]
[1770521653048,53.73109008,87.482,87.441,46.15281161]
[1770521653351,45.16417526,87.48,87.441,46.15281161]
[1770521653939,45.16417526,87.48,87.429,10.302]
[1770521653940,45.16417526,87.48,87.43,3.34995381]
[1770521654145,45.16417526,87.478,87.42,3.34995381]
[1770521654448,3.34995381,87.48,87.42,52.73627489]
[1770521654449,45.16417526,87.476,87.42,52.73627489]
[1770521654649,45.16417526,87.474,87.42,52.73627489]
[1770521654850,45.16417526,87.472,87.42,52.73627489]
[1770521656353,45.16417526,87.459,87.407,49.38632108]
[1770521656550,45.16417526,87.457,87.407,49.38632108]
[1770521656748,45.16417526,87.455,87.407,49.38632108]
[1770521656947,45.16417526,87.453,87.407,49.38632108]
[1770521657146,45.16417526,87.451,87.407,49.38632108]
[1770521657348,45.16417526,87.449,87.407,49.38632108]
[1770521657548,53.73158779,87.448,87.407,49.38632108]
[1770521657744,53.73268704,87.447,87.4,3.34995381]
[1770521657949,45.16417526,87.445,87.394,49.38632108]
[1770521658145,45.16417526,87.443,87.394,49.38632108]
[1770521658348,45.16417526,87.441,87.394,49.38632108]
[1770521659558,45.16417526,87.441,87.4,3.34995381]
[1770521659752,45.16417526,87.441,87.394,49.38632108]
[1770521663155,45.16417526,87.439,87.394,49.38632108]
[1770521663353,45.16417526,87.435,87.394,49.38632108]
[1770521663554,45.16417526,87.435,87.38,3.34995381]
[1770521663555,45.16417526,87.429,87.381,49.38632108]
[1770521663754,45.16417526,87.427,87.381,49.38632108]
[1770521663954,45.16417526,87.425,87.381,49.38632108]
[1770521664157,8.57126649,87.424,87.39,3.34995381]
[1770521664358,45.16417526,87.425,87.39,3.34995381]
[1770521664550,8.571263,87.424,87.39,3.34995381]
[1770521664745,45.16417526,87.425,87.39,3.34995381]
[1770521665049,8.571263,87.424,87.39,3.34995381]
[1770521665249,45.16417526,87.425,87.39,3.34995381]
[1770521666253,45.16417526,87.45,87.41,3.34995381]
[1770521666453,10.2995,87.451,87.41,3.34995381]
[1770521666454,45.16417526,87.448,87.41,3.34995381]
[1770521666650,53.73203301,87.447,87.41,3.34995381]
[1770521666853,53.73203301,87.446,87.41,3.34995381]
[1770521667057,45.16417526,87.446,87.41,3.34995381]
[1770521667251,45.16417526,87.444,87.401,49.38632108]
[1770521668555,45.16417526,87.444,87.4,3.34995381]
[1770521671457,45.16417526,87.444,87.401,49.38632108]
[1770521672059,45.16417526,87.444,87.41,3.34995381]
[1770521673746,45.16417526,87.444,87.41,52.73627489]
[1770521677560,48.01396745,87.456,87.42,3.34995381]
[1770521677762,8.56817954,87.455,87.42,3.34995381]
[1770521677956,48.01396745,87.456,87.42,3.34995381]
[1770521680560,48.01396745,87.456,87.41,52.73627489]
[1770521682463,48.01396745,87.456,87.42,3.34995381]
[1770521686371,48.01396745,87.454,87.399,46.2380237]
[1770521686664,48.01396745,87.454,87.364,34.35]
[1770521686665,48.01396745,87.452,87.42,3.34995381]
[1770521687673,48.01396745,87.452,87.41,49.58797751]
[1770521691570,48.01396745,87.473,87.43,49.58797751]
[1770521691774,48.01396745,87.471,87.43,49.58797751]
[1770521691969,48.01396745,87.469,87.43,49.58797751]
[1770521692170,48.01396745,87.469,87.44,3.34995381]
[1770521693367,48.01396745,87.469,87.44,3.34612317]
[1770521693970,48.01396745,87.484,87.45,3.34612317]
[1770521694775,48.01396745,87.482,87.43,49.58414687]
[1770521694972,48.01396745,87.48,87.43,49.58414687]
[1770521695172,48.01396745,87.478,87.43,49.58414687]
[1770521695368,48.01396745,87.478,87.44,3.34612317]
[1770521695676,48.01396745,87.476,87.43,46.2380237]
[1770521695877,48.01396745,87.474,87.43,46.2380237]
[1770521696072,48.01396745,87.472,87.43,46.2380237]
[1770521696270,48.01396745,87.47,87.43,46.2380237]
[1770521696469,48.01396745,87.468,87.43,46.2380237]
[1770521697570,48.01396745,87.468,87.43,49.58414687]
[1770521697774,48.01396745,87.466,87.43,49.58414687]
[1770521697979,56.58923111,87.465,87.43,49.58414687]
[1770521698176,48.01396745,87.465,87.43,49.58414687]
[1770521698476,56.59011249,87.464,87.43,49.58414687]
[1770521698679,8.57614504,87.463,87.43,46.2380237]
[1770521698880,48.01396745,87.464,87.43,46.2380237]
[1770521699081,48.01396745,87.462,87.414,46.2380237]
[1770521699284,48.01396745,87.46,87.414,46.2380237]
[1770521699481,48.01396745,87.458,87.42,3.34612317]
[1770521699779,48.01396745,87.456,87.42,3.34612317]
[1770521700779,48.01396745,87.456,87.414,46.2380237]
[1770521701480,48.01396745,87.456,87.42,3.34612317]
[1770521702581,48.01396745,87.456,87.414,46.2380237]
[1770521702881,48.01396745,87.454,87.403,46.2380237]
[1770521703084,48.01396745,87.452,87.403,46.2380237]
[1770521703284,48.01396745,87.45,87.41,3.34612317]
[1770521703484,48.01396745,87.448,87.41,3.34612317]
[1770521703686,48.01396745,87.446,87.41,3.34612317]
[1770521704189,3.34612317,87.47,87.42,3.34612317]
[1770521704190,48.01396745,87.457,87.42,3.34612317]
[1770521704388,48.01396745,87.455,87.42,3.34612317]
[1770521705488,48.01396745,87.455,87.411,46.2380237]
[1770521705985,47.37342583,87.453,87.411,46.2380237]
[1770521706183,47.37342583,87.451,87.411,46.2380237]
[1770521709887,47.37342583,87.462,87.42,52.03816467]
[1770521710190,55.95791748,87.461,87.42,52.03816467]
[1770521710388,8.58449165,87.46,87.42,52.03816467]
[1770521710586,8.58449165,87.459,87.42,52.03816467]
[1770521710890,8.58449165,87.458,87.43,3.34612317]
[1770521711184,47.37342583,87.46,87.43,3.34612317]
[1770521711389,8.59012396,87.459,87.43,3.34612317]
[1770521711588,47.37342583,87.46,87.43,3.34612317]
[1770521711890,8.59012396,87.459,87.43,3.34612317]
[1770521712190,47.37342583,87.46,87.43,3.34612317]
[1770521712390,55.96413669,87.459,87.43,3.34612317]
[1770521712585,8.59071086,87.458,87.42,52.03816467]
[1770521712781,8.59071086,87.457,87.42,52.03816467]
[1770521712987,8.59071086,87.456,87.42,52.03816467]
[1770521713188,8.59071086,87.455,87.42,52.03816467]
[1770521713489,8.59071086,87.454,87.42,52.03816467]
[1770521713792,47.37342583,87.459,87.42,52.03816467]
[1770521714086,8.59232112,87.458,87.42,52.03816467]
[1770521714288,8.59232112,87.457,87.42,52.03816467]
[1770521714489,8.59232112,87.456,87.42,52.03816467]
[1770521714688,8.59232112,87.455,87.42,52.03816467]
[1770521714890,8.59232112,87.454,87.42,52.03816467]
[1770521715089,47.37342583,87.459,87.42,52.03816467]
[1770521715285,10.3018,87.432,87.377,34.35]
[1770521715492,48.75678072,87.419,87.361,46.30661056]
[1770521715692,48.75678072,87.409,87.35,3.34612317]
[1770521716091,48.75678072,87.409,87.36,3.34612317]
[1770521716290,48.75678072,87.409,87.361,46.30661056]
[1770521716496,57.35134852,87.408,87.361,46.30661056]
[1770521716697,57.35134852,87.407,87.371,46.30661056]
[1770521716891,48.75678072,87.42,87.38,3.34612317]
[1770521717087,8.75843838,87.419,87.38,3.34612317]
[1770521717291,8.75843838,87.418,87.38,3.34612317]
[1770521717493,8.75843838,87.417,87.38,3.34612317]
[1770521717694,48.75678072,87.42,87.38,3.34612317]
[1770521717894,57.5117744,87.419,87.38,3.34612317]
[1770521718095,57.5117744,87.418,87.38,3.34612317]
[1770521718291,48.75678072,87.418,87.38,3.34612317]
[1770521718491,8.7519373,87.417,87.38,3.34612317]
[1770521718697,48.75678072,87.418,87.38,3.34612317]
[1770521718889,8.7519373,87.417,87.38,3.34612317]
[1770521719090,48.75678072,87.418,87.38,3.34612317]
[1770521719895,48.75678072,87.43,87.381,46.30661056]
[1770521720194,48.75678072,87.443,87.401,46.30661056]
[1770521720496,8.74667355,87.442,87.401,46.30661056]
[1770521720697,8.74667355,87.441,87.401,46.30661056]
[1770521720898,8.74667355,87.44,87.401,46.30661056]
[1770521721098,48.75678072,87.443,87.401,46.30661056]
[1770521721508,8.74632912,87.442,87.401,46.30661056]
[1770521721798,8.74632912,87.441,87.401,46.30661056]
[1770521721988,8.74632912,87.44,87.401,46.30661056]
[1770521722191,48.75678072,87.443,87.401,46.30661056]
[1770521722394,8.74584349,87.442,87.401,46.30661056]
[1770521722594,8.74584349,87.441,87.401,46.30661056]
[1770521722795,8.74584349,87.44,87.41,3.34612317]
[1770521723000,48.75678072,87.443,87.41,3.34612317]
[1770521726101,8.7454949,87.442,87.41,3.34612317]
[1770521726301,8.7454949,87.441,87.41,3.34612317]
[1770521726606,48.75678072,87.443,87.401,46.30661056]
[1770521726803,57.50194199,87.442,87.401,46.30661056]
[1770521727006,8.74516127,87.441,87.401,46.30661056]
[1770521727302,8.74490542,87.44,87.401,46.30661056]
[1770521727504,48.75678072,87.442,87.401,46.30661056]
[1770521727705,8.74490542,87.441,87.401,46.30661056]
[1770521727904,8.74490542,87.44,87.401,46.30661056]
[1770521728105,8.74490542,87.439,87.401,46.30661056]
[1770521728405,8.74490542,87.438,87.401,46.30661056]
[1770521728594,8.74490542,87.437,87.401,46.30661056]
[1770521728797,8.74490542,87.436,87.401,46.30661056]
[1770521728998,48.75678072,87.429,87.38,3.34612317]
[1770521729199,48.75678072,87.427,87.374,46.30661056]
[1770521729505,48.75678072,87.425,87.374,46.30661056]
[1770521729706,48.75678072,87.423,87.374,46.30661056]
[1770521729908,48.75678072,87.421,87.374,46.30661056]
[1770521730202,48.75678072,87.419,87.374,46.30661056]
[1770521730404,57.50168614,87.418,87.374,46.30661056]
[1770521730613,48.75678072,87.409,87.361,46.30661056]
[1770521730806,48.75678072,87.407,87.361,46.30661056]
[1770521731002,48.75678072,87.405,87.361,46.30661056]
[1770521731307,48.75678072,87.403,87.361,46.30661056]
[1770521731712,8.73940139,87.402,87.361,46.30661056]
[1770521731910,8.73940139,87.401,87.361,46.30661056]
[1770521732202,8.73940139,87.4,87.361,46.30661056]
[1770521732411,48.75678072,87.403,87.361,46.30661056]
[1770521732610,8.73515641,87.402,87.361,46.30661056]
[1770521732801,8.73515641,87.401,87.361,46.30661056]
[1770521733002,48.75678072,87.403,87.361,46.30661056]
[1770521733202,8.73515641,87.402,87.361,46.30661056]
[1770521733504,8.73515641,87.402,87.29,305.34359134]
[1770521733505,48.75678072,87.379,87.331,46.30661056]
[1770521733699,48.75678072,87.379,87.34,49.65273373]
[1770521734099,48.75678072,87.379,87.34,46.30661056]
[1770521735008,48.75678072,87.391,87.34,49.65273373]
[1770521735407,48.75678072,87.389,87.34,49.65273373]
[1770521742318,48.75678072,87.389,87.35,3.34612317]
[1770521742917,45.0280162,87.401,87.36,47.96510483]
[1770521743109,45.0280162,87.401,87.37,3.34612317]
[1770521743920,45.0280162,87.401,87.36,44.61898166]
[1770521746613,45.0280162,87.401,87.36,47.96510483]
[1770521746813,45.0280162,87.413,87.37,47.96510483]
[1770521748113,45.0280162,87.413,87.354,10.3109]
[1770521748114,45.0280162,87.413,87.36,3.34612317]
[1770521748319,45.0280162,87.409,87.359,44.61898166]
[1770521748521,45.0280162,87.407,87.359,44.61898166]
[1770521748715,45.0280162,87.405,87.359,44.61898166]
[1770521749515,45.0280162,87.405,87.36,3.34612317]
[1770521752422,45.0280162,87.403,87.36,3.34612317]
[1770521753622,45.0280162,87.403,87.36,3.35231229]
[1770521756423,45.0280162,87.401,87.36,3.35231229]
[1770521756623,45.0280162,87.401,87.359,44.61898166]
[1770521757424,45.0280162,87.399,87.359,44.61898166]
[1770521758625,45.0280162,87.399,87.36,3.35231229]
[1770521759719,45.0280162,87.399,87.36,47.97129395]
[1770521759924,45.0280162,87.399,87.37,3.35231229]
[1770521764322,45.0280162,87.397,87.338,44.61898166]
[1770521764530,45.0280162,87.389,87.338,44.61898166]
[1770521764730,45.0280162,87.387,87.338,44.61898166]
[1770521766430,45.0280162,87.387,87.34,3.35231229]
[1770521767033,45.0280162,87.387,87.35,3.35231229]
[1770521769432,10.3061,87.395,87.35,3.35231229]
[1770521769433,8.75960085,87.386,87.351,43.8831372]
[1770521769638,44.81846038,87.41,87.37,3.35231229]
[1770521769834,44.81846038,87.408,87.37,3.35231229]
[1770521770038,44.81846038,87.406,87.37,3.35231229]
[1770521770335,53.57636897,87.405,87.37,3.35231229]
[1770521770541,53.57636897,87.404,87.361,43.8831372]
[1770521770841,44.81846038,87.402,87.35,3.35231229]
[1770521771042,44.81846038,87.4,87.35,3.35231229]
[1770521771241,44.81846038,87.398,87.35,3.35231229]
[1770521771440,44.81846038,87.396,87.35,47.23544949]
[1770521771638,44.81846038,87.394,87.35,47.23544949]
[1770521771842,53.57636897,87.393,87.35,47.23544949]
[1770521772135,8.75790859,87.392,87.35,47.23544949]
[1770521772335,8.75790859,87.391,87.35,47.23544949]
[1770521772648,8.75790859,87.39,87.35,47.23544949]
[1770521772943,8.75790859,87.389,87.35,47.23544949]
[1770521773145,44.81846038,87.393,87.35,47.23544949]
[1770521773346,8.77319404,87.392,87.35,47.23544949]
[1770521773645,8.77319404,87.391,87.35,47.23544949]
[1770521773942,8.77319404,87.39,87.35,47.23544949]
[1770521774142,8.77319404,87.389,87.35,47.23544949]
[1770521774333,8.77319404,87.388,87.35,47.23544949]
[1770521774534,8.77319404,87.387,87.35,47.23544949]
[1770521774844,44.81846038,87.393,87.35,47.23544949]
[1770521775043,8.78068664,87.392,87.35,47.23544949]
[1770521775245,8.78068664,87.391,87.35,47.23544949]
[1770521775544,8.78068664,87.39,87.35,47.23544949]
[1770521775844,8.78068664,87.389,87.35,47.23544949]
[1770521776042,8.78068664,87.388,87.35,47.23544949]
[1770521776242,8.78068664,87.387,87.35,47.23544949]
[1770521776446,8.78068664,87.386,87.35,47.23544949]
[1770521776742,44.81846038,87.393,87.35,47.23544949]
[1770521776935,8.7821946,87.392,87.35,47.23544949]
[1770521777132,8.7821946,87.391,87.35,47.23544949]
[1770521777344,8.7821946,87.39,87.35,47.23544949]
[1770521777548,8.7821946,87.389,87.35,47.23544949]
[1770521777740,8.7821946,87.388,87.35,47.23544949]
[1770521777940,8.7821946,87.387,87.35,47.23544949]
[1770521778144,44.81846038,87.393,87.35,47.23544949]
[1770521778346,8.78219852,87.392,87.35,47.23544949]
[1770521778547,8.78219852,87.391,87.35,47.23544949]
[1770521778746,8.78219852,87.39,87.35,47.23544949]
[1770521778945,8.78219852,87.389,87.35,47.23544949]
[1770521779143,8.78219852,87.388,87.35,47.23544949]
[1770521779345,8.78219852,87.387,87.35,47.23544949]
[1770521779547,44.81846038,87.393,87.35,47.23544949]
[1770521779741,8.78378834,87.392,87.35,47.23544949]
[1770521779944,8.78378834,87.391,87.35,47.23544949]
[1770521780145,8.78378834,87.39,87.35,47.23544949]
[1770521780349,8.78378834,87.389,87.35,47.23544949]
[1770521780547,8.78378834,87.388,87.35,47.23544949]
[1770521780748,8.78378834,87.387,87.35,47.23544949]
[1770521780948,8.78378834,87.386,87.35,47.23544949]
[1770521781242,8.784561,87.385,87.35,47.23544949]
[1770521781448,44.81846038,87.393,87.35,47.23544949]
[1770521781644,55.34473698,87.392,87.35,47.23544949]
[1770521781844,8.78473319,87.391,87.35,47.23544949]
[1770521782148,46.56000379,87.392,87.35,47.23544949]
[1770521782149,8.78473319,87.39,87.35,47.23544949]
[1770521782349,8.78473319,87.389,87.35,47.23544949]
[1770521782551,8.78473319,87.388,87.35,47.23544949]
[1770521782752,8.78473319,87.387,87.35,47.23544949]
[1770521783053,8.78473319,87.386,87.35,47.23544949]
[1770521783255,46.56000379,87.392,87.36,3.35231229]
[1770521783453,8.78567992,87.391,87.36,3.35231229]
[1770521783654,8.78567992,87.39,87.36,3.35231229]
[1770521783855,8.78567992,87.389,87.36,3.35231229]
[1770521784059,8.78567992,87.388,87.36,3.35231229]
[1770521784256,8.78567992,87.387,87.36,3.35231229]
[1770521784453,8.78567992,87.386,87.36,3.35231229]
[1770521784654,46.56000379,87.392,87.36,3.35231229]
[1770521784853,8.78624839,87.391,87.36,3.35231229]
[1770521785057,46.56000379,87.392,87.36,3.35231229]
[1770521785058,8.78624839,87.39,87.36,3.35231229]
[1770521785255,8.78624839,87.389,87.36,3.35231229]
[1770521785463,8.78624839,87.388,87.36,3.35231229]
[1770521785757,8.78624839,87.387,87.36,3.35231229]
[1770521785960,8.78624839,87.386,87.35,47.23544949]
[1770521786161,8.78624839,87.385,87.35,47.23544949]
[1770521786361,46.56000379,87.392,87.35,47.23544949]
[1770521786555,8.78758693,87.391,87.35,47.23544949]
[1770521786756,8.78758693,87.39,87.35,47.23544949]
[1770521786956,46.56000379,87.392,87.35,47.23544949]
[1770521786957,8.78758693,87.389,87.35,47.23544949]
[1770521787158,8.78758693,87.388,87.35,47.23544949]
[1770521787362,8.78758693,87.387,87.35,47.23544949]
[1770521787559,8.78758693,87.386,87.35,47.23544949]
[1770521787756,8.78758693,87.385,87.35,47.23544949]
[1770521787955,8.78758693,87.384,87.35,47.23544949]
[1770521788164,46.56000379,87.392,87.35,47.23544949]
[1770521788363,55.3482972,87.391,87.35,47.23544949]
[1770521788564,8.78829341,87.39,87.35,47.23544949]
[1770521788766,8.78829341,87.389,87.35,47.23544949]
[1770521788965,8.78829341,87.388,87.35,47.23544949]
[1770521789165,8.78829341,87.387,87.35,47.23544949]
[1770521789367,8.78829341,87.386,87.35,47.23544949]
[1770521789567,8.78829341,87.385,87.35,47.23544949]
[1770521789758,46.56000379,87.391,87.35,47.23544949]
[1770521789962,8.78855357,87.39,87.35,47.23544949]
[1770521790165,8.78855357,87.389,87.35,47.23544949]
[1770521790362,8.78855357,87.388,87.35,47.23544949]
[1770521790564,8.78855357,87.387,87.35,47.23544949]
[1770521790765,8.78855357,87.386,87.35,47.23544949]
[1770521790966,8.78855357,87.385,87.35,47.23544949]
[1770521791167,46.56000379,87.391,87.35,47.23544949]
[1770521791364,8.78836108,87.39,87.35,47.23544949]
[1770521791665,8.78836108,87.389,87.35,47.23544949]
[1770521791864,8.78836108,87.388,87.35,47.23544949]
[1770521792162,8.78836108,87.387,87.35,47.23544949]
[1770521792363,8.78836108,87.386,87.35,47.23544949]
[1770521792557,8.78836108,87.385,87.35,47.23544949]
[1770521792762,8.78836108,87.384,87.35,47.23544949]
[1770521792962,46.56000379,87.391,87.35,47.23544949]
[1770521793157,8.78904611,87.39,87.35,47.23544949]
[1770521793362,8.78904611,87.389,87.35,47.23544949]
[1770521793568,8.78904611,87.388,87.35,47.23544949]
[1770521793768,8.78904611,87.387,87.35,47.23544949]
[1770521793967,8.78904611,87.386,87.36,3.35231229]
[1770521794163,8.78904611,87.385,87.36,3.35231229]
[1770521794471,46.56000379,87.391,87.36,3.35231229]
[1770521794666,8.78911369,87.39,87.361,44.7425479]
[1770521794869,46.56000379,87.413,87.371,44.7425479]
[1770521796064,44.26349137,87.423,87.39,3.35231229]
[1770521803575,44.26349137,87.423,87.371,54.37860322]
[1770521804980,44.26349137,87.419,87.361,44.06980322]
[1770521806666,44.26349137,87.419,87.362,10.3099]
[1770521806870,44.26349137,87.417,87.363,44.06980322]
[1770521807066,44.26349137,87.415,87.363,44.06980322]
[1770521807379,44.26349137,87.413,87.371,44.06980322]
[1770521807578,8.72114173,87.412,87.371,44.06980322]
[1770521807777,8.72114173,87.411,87.371,44.06980322]
[1770521807972,44.26349137,87.413,87.371,44.06980322]
[1770521808174,8.720604,87.412,87.371,44.06980322]
[1770521808479,8.720604,87.411,87.371,44.06980322]
[1770521808672,44.26349137,87.413,87.371,44.06980322]
[1770521808868,8.72031107,87.412,87.371,44.06980322]
[1770521809071,8.72031107,87.411,87.371,44.06980322]
[1770521809276,44.26349137,87.413,87.371,44.06980322]
[1770521809467,8.72023931,87.412,87.371,44.06980322]
[1770521809674,8.72023931,87.411,87.371,44.06980322]
[1770521809876,44.26349137,87.409,87.371,44.06980322]
[1770521810076,44.26349137,87.407,87.371,44.06980322]
[1770521810380,44.26349137,87.405,87.371,44.06980322]
[1770521812882,44.26349137,87.419,87.38,47.42211551]
[1770521813180,44.26349137,87.417,87.38,47.42211551]
[1770521813382,44.26349137,87.415,87.38,47.42211551]
[1770521813572,52.98716562,87.414,87.38,47.42211551]
[1770521813770,52.98716562,87.413,87.38,44.06980322]
[1770521813969,52.98716562,87.412,87.37,3.35231229]
[1770521814168,44.26349137,87.41,87.37,3.35231229]
[1770521814374,44.26349137,87.408,87.37,3.35231229]
[1770521814679,52.98830351,87.407,87.37,47.42211551]